Cogmind - Beta 17 @@@ ROGUE MODE // 2026.07.04 @ 21:45:56 Player: Scarlet Result: Smashed by cave-in Performance ------------- Evolutions (0) 0 Regions Visited (3) 600 Robots Destroyed (1) 5 Value Destroyed (40) 40 Prototype IDs (1) 20 Alien Tech Used (0) 0 Bonus (-21) -21 TOTAL SCORE: 644 Bonus ------- Friendly Fire -21 Cogmind --------- Core Integrity 0/250 Matter 269/300 Energy 98/100 System Corruption 26% Temperature Cool (2) Movement Core (400) Ox7 Location -10/Subcaves Parts ------- > --- POWER (1) -------- (None) > --- PROPULSION (2) --- (None) > --- UTILITY (2) ------ Large Storage Unit > --- WEAPON (2) ------- Rocket Launcher > --- INVENTORY (15) --- Subdweller Monowheel Medium Matter Pod (66) Faulty Experimental Sensor Array Scrap Shield EM Pulse Gun EM Pulse Gun Subdweller Beam Cannon Battle Cannon Grenade Launcher Grenade Launcher Grenade Launcher Peak State ------------ > --- POWER ------------ Ion Engine > --- PROPULSION ------- Aluminum Leg Aluminum Leg > --- UTILITY ---------- Large Storage Unit Experimental Sensor Array > --- WEAPON ----------- EM Pulse Gun Grenade Launcher > --- INVENTORY -------- Medium Matter Pod EM Pulse Gun Grenade Launcher Grenade Launcher [Rating: 15] Favorites ----------- Power Ion Engine Engine Ion Engine Propulsion Aluminum Leg Leg Aluminum Leg Wheel Subdweller Monowheel Utility Large Storage Unit Device Experimental Sensor Array Storage Large Storage Unit Weapon Grenade Launcher Energy Gun EM Pulse Gun Launcher Grenade Launcher Slashing Weapon Mining Claw Build | -11 -10 -10 -10 ------- Run | Yrd Mat Min Sub Slots Evolved . | . . . . Power . | . . . . Propulsion . | . . . . Utility . | . . . . Weapon . | . . . . Parts Attached 18 | 6 3 2 7 Power 2 | 1 . . 1 Engine 2 | 1 . . 1 Core . | . . . . Reactor . | . . . . Propulsion 5 | 2 . . 3 Treads . | . . . . Leg 4 | 2 . . 2 Wheel 1 | . . . 1 Hover . | . . . . Flight . | . . . . Utility 5 | 1 2 2 . Device 1 | . . 1 . Storage 4 | 1 2 1 . Processor . | . . . . Hackware . | . . . . Protection . | . . . . Artifact . | . . . . Weapon 6 | 2 1 . 3 Energy Gun 2 | 2 . . . Energy Cannon . | . . . . Ballistic Gun . | . . . . Ballistic Cannon . | . . . . Launcher 2 | . 1 . 1 Special Weapon . | . . . . Impact Weapon . | . . . . Slashing Weapon 2 | . . . 2 Piercing Weapon . | . . . . Special Melee Weapon . | . . . . Unidentified Prototypes 1 | . . 1 . Parts Lost 9 | . . . 9 Power 2 | . . . 2 Propulsion 4 | . . . 4 Utility 1 | . . . 1 Weapon 2 | . . . 2 Highest Loss Streak 8 | . . . 8 To Critical Strikes 1 | . . . 1 Average Backups 8 | . . 6 12 Power . | . . . . Propulsion . | . . . 1 Utility 2 | . . 1 2 Weapon 5 | . . 3 7 Tool/Special . | . . . . Unused Backups 6 | . . . 6 Power . | . . . . Propulsion . | . . . . Utility 1 | . . . 1 Weapon 5 | . . . 5 Tool/Special . | . . . . Average Slot Usage (%) 98 | . 85 99 99 Engine 14 | . 14 14 14 Leg 27 | . 28 28 27 Storage 26 | . 14 27 27 Energy Gun 7 | . 24 14 . Launcher 12 | . 3 14 14 Slashing Weapon 7 | . . . 13 Peak Build Rating 15 | 6 7 15 12 Average Rating 8 | 4 6 8 9 On Entrance 5 | . 6 7 9 Avg Prop Armor Cover (%) . | . . . . Naked Turns . | . . . . Heaviest Build 35 | 14 32 34 35 Greatest Support 20 | 20 20 20 20 Greatest Overweight (x) 3 | 3 1 1 3 Average Overweight (x) . | . . 1 1 Largest Inventory Capacity 15 | 8 15 15 15 Average Capacity 14 | 7 13 15 15 Most Carried 15 | . 3 10 15 Average Carried 9 | . . 6 13 Final Capacity 15 | 8 15 15 15 Final Carried 12 | . 3 10 12 Class Distribution -------------------- 100% | Mutant Dominant Class ---------------- Mutant | -10/Materials Mutant | -10/Mines Mutant | -10/Subcaves Resources | -11 -10 -10 -10 ----------- Run | Yrd Mat Min Sub Matter Collected 594 | 221 . 224 149 Remotely . | . . . . Salvage Created 10 | . . . 10 Parts 2 | . . . 2 Haulers Intercepted . | . . . . Recyclers Shooed . | . . . . Parts Field Recycled . | . . . . Retrieved Matter . | . . . . Parts Self-Destructed 17 | . . . 17 Prevented . | . . . . Parts Restored . | . . . . Kills | -11 -10 -10 -10 ------- Run | Yrd Mat Min Sub Combat Hostiles Destroyed 1 | . . . 1 AOE 1 | . . . 1 Classes Destroyed 1 | . . . 1 Subdweller 1 | . . . 1 Best Kill Streak 1 | . . . 1 Combat Bots Only 1 | . . . 1 Max Kills in Single Turn 1 | . . . 1 Gunslinging . | . . . . Exploded 1 | . . . 1 Melee . | . . . . Uniques/NPCs Destroyed . | . . . . Combat | -11 -10 -10 -10 -------- Run | Yrd Mat Min Sub Hostile Shots Fired 26 | . 4 . 22 Missed 10 | . 2 . 8 Hits 16 | . 2 . 14 Projectile 16 | . 2 . 14 Critical Strikes 1 | . . . 1 Damage Taken 1137 | . 26 . 1111 Core 319 | . . . 319 Absorbed by Shields . | . . . . Core Remaining (%) 100 | 100 . . . Volleys Fired 20 | . . . 20 Largest 1 | . . . 1 Hottest 33 | . . . 33 Shots Fired 20 | . . . 20 Gun . | . . . . Cannon . | . . . . Launcher 20 | . . . 20 Special . | . . . . Kinetic . | . . . . Thermal . | . . . . Explosive 20 | . . . 20 Electromagnetic . | . . . . Robot Hit Streak 2 | . . . 2 Robot Miss Streak 1 | . . . 1 Penetration Max . | . . . . Secondary Targets . | . . . . Shots Hit Robots 2 | . . . 2 Core Hits 1 | . . . 1 Critical Kills . | . . . . Critical Parts Destroyed . | . . . . Critical Strikes . | . . . . Melee Attacks 16 | . . . 16 Impact . | . . . . Slashing 16 | . . . 16 Piercing . | . . . . Sneak Attacks . | . . . . Combat Hostiles . | . . . . Follow-up Attacks . | . . . . Damage Inflicted 398 | . . 14 384 Guns . | . . . . Cannons . | . . . . Explosions 384 | . . . 384 Melee . | . . . . Ramming 14 | . . 14 . Kinetic . | . . . . Thermal . | . . . . Explosive 384 | . . . 384 Electromagnetic . | . . . . Impact . | . . . . Slashing . | . . . . Piercing . | . . . . Highest Corruption 15 | . . . 15 Average Corruption 15 | . . . 15 Corruption Purged . | . . . . Corruption Blocked . | . . . . Effects 1 | . . . 1 Message Errors 1 | . . . 1 Overload Shots . | . . . . Overflow Damage . | . . . . Projectiles . | . . . . Explosions . | . . . . Melee . | . . . . Knockbacks . | . . . . Impact . | . . . . Kinetic . | . . . . Secondary . | . . . . Self-Inflicted Damage 25 | . . . 25 Shots 2 | . . . 2 Rammed . | . . . . Targets Rammed 4 | . . 4 . Kicked 4 | . . 4 . Crushed . | . . . . Highest Temperature 191 | . . 191 . Average Temperature 94 | . . 94 . Received Heat Transfer 81 | . 15 . 66 Siege Activations . | . . . . Martial Activations . | . . . . Shielding Activations . | . . . . Robots Disrupted . | . . . . Combat Hostiles . | . . . . Robots Corrupted . | . . . . Combat Hostiles . | . . . . Parts Fried . | . . . . Impact Corruptions . | . . . . Robots Melted . | . . . . Combat Hostiles . | . . . . Parts Melted . | . . . . Heat Transferred . | . . . . Parts Sabotaged . | . . . . Parts Stolen . | . . . . Parts Stripped . | . . . . Power Chain Reactions . | . . . . Alert | -11 -10 -10 -10 ------- Run | Yrd Mat Min Sub Maximum Alert Level . | . . . . Low Security (%) 100 | 100 100 100 . Level 1 . | . . . . Level 2 . | . . . . Level 3 . | . . . . Level 4 . | . . . . Level 5 . | . . . . High Security . | . . . . Max Security . | . . . . Peak Influence 5 | . 5 . . Initial . | . . . . Average . | . . . . Influence Increases 20 | . 5 . 15 Successful Hack 5 | . 5 . . Lose Combat Pursuer 15 | . . . 15 Influence Decreases 20 | . 5 . 15 Time Decay 20 | . 5 . 15 Squads Dispatched . | . . . . Investigation . | . . . . Extermination . | . . . . Reinforcement . | . . . . Assault . | . . . . Garrison . | . . . . Intercept . | . . . . Searches Triggered . | . . . . Construction Impeded . | . . . . Haulers Reinforced . | . . . . Active Scanning Responses . | . . . . Cargo Convoy Interrupts . | . . . . Stealth | -11 -10 -10 -10 --------- Run | Yrd Mat Min Sub Distress Signals . | . . . . Communications Jammed . | . . . . Distress Signals . | . . . . Times Spotted 25 | . 3 . 22 Peak Tracking Total 8 | . 3 . 8 Tactical Retreats 1 | . . . 1 Traps | -11 -10 -10 -10 ------- Run | Yrd Mat Min Sub Traps Triggered . | . . . . Indirectly . | . . . . Trap Hack Attempts . | . . . . Triggered . | . . . . Disarmed 6 | . 6 . . Reprogrammed . | . . . . Reused . | . . . . Traps Extracted . | . . . . Installed . | . . . . Triggered . | . . . . Machines | -11 -10 -10 -10 ---------- Run | Yrd Mat Min Sub Machines Disabled . | . . . . Max in Single Turn . | . . . . Machines Repaired . | . . . . Machines Dismantled . | . . . . Machines Sabotaged . | . . . . Overloaded Fab Kills . | . . . . Hacking | -11 -10 -10 -10 --------- Run | Yrd Mat Min Sub Machines Accessed 3 | . 3 . . Terminals 2 | . 2 . . Fabricators . | . . . . Repair Stations . | . . . . Recycling Units 1 | . 1 . . Scanalyzers . | . . . . Garrison Access . | . . . . Total Hacks 7 | . 7 . . Successful 5 | . 5 . . Failed 2 | . 2 . . Catastrophic . | . . . . Database Lockouts . | . . . . Manual . | . . . . Terminals 5 | . 5 . . Fabricators . | . . . . Repair Stations . | . . . . Recycling Units 2 | . 2 . . Scanalyzers . | . . . . Garrison Access . | . . . . Terminal Hacks 3 | . 3 . . Record 1 | . 1 . . Disarm Traps 1 | . 1 . . Zone Layout 1 | . 1 . . Fabricator Hacks . | . . . . Repair Station Hacks . | . . . . Recycling Unit Hacks 2 | . 2 . . Report Inventory 1 | . 1 . . Retrieve Matter 1 | . 1 . . Scanalyzer . | . . . . Garrison Access Hacks . | . . . . Unauthorized Hacks . | . . . . Terminals . | . . . . Fabricators . | . . . . Repair Stations . | . . . . Recycling Units . | . . . . Scanalyzers . | . . . . Garrison Access . | . . . . Data Cores Recovered . | . . . . Used . | . . . . Hacking Detections 2 | . 2 . . Full Trace Events . | . . . . Feedback Events . | . . . . Feedback Blocked . | . . . . Robot Schematics Acquired . | . . . . Robots Built . | . . . . Authchips . | . . . . Time . | . . . . Total Robot Build Rating . | . . . . Part Schematics Acquired . | . . . . Parts Built . | . . . . Authchips . | . . . . Time . | . . . . Total Part Build Rating . | . . . . Part Studies Acquired . | . . . . Parts Repaired . | . . . . Time . | . . . . Parts Recycled . | . . . . Recycled Matter . | . . . . Retrieved Matter . | . . . . Retrieved Components . | . . . . Parts Scanalyzed . | . . . . Part Schematics Acquired . | . . . . Parts Damaged . | . . . . Bothacking | -11 -10 -10 -10 ------------ Run | Yrd Mat Min Sub Used RIF Installer . | . . . . Robots Hacked . | . . . . Non-combat . | . . . . Combat . | . . . . Robot Hacks Applied . | . . . . Relay Couplers Released . | . . . . Fabnet Peak Effective % . | . . . . Robots Rewired . | . . . . Allies Hacked . | . . . . Hacks Repelled . | . . . . Allies | -11 -10 -10 -10 -------- Run | Yrd Mat Min Sub Total Allies . | . . . . Largest Group . | . . . . Highest-Rated Group . | . . . . Highest-Rated Ally . | . . . . Total Orders . | . . . . Ally Attacks . | . . . . Total Damage . | . . . . Kills . | . . . . Allies Corrupted . | . . . . Allies Melted . | . . . . Intel | -11 -10 -10 -10 ------- Run | Yrd Mat Min Sub Active Infowar (turns) . | . . . . Robot Analysis Total . | . . . . Derelict Logs Recovered 1 | . . 1 . Drone Launches . | . . . . Drone Recoveries . | . . . . Exploration | -11 -10 -10 -10 ------------- Run | Yrd Mat Min Sub Turns Passed 1662 | 56 149 581 876 Spaces Moved 815 | 38 85 296 396 Core 11 | 11 . . . Treads . | . . . . Legs 804 | 27 85 296 396 Wheels . | . . . . Hover . | . . . . Flight . | . . . . Fastest Speed 50 | 50 120 190 190 Average Speed 185 | 122 167 190 191 Slowest Speed 330 | 200 190 190 330 Overloaded Moves . | . . . . Propulsion Burnouts . | . . . . Robots Hopped . | . . . . Potential Cave-ins 18 | . . . 18 Cave-ins Triggered 2 | . . . 2 Exploration Rate (%) 31 | 3 28 68 28 Regions Visited 3 Branch Regions 2 Pre-discovered Areas 1 | . . . 1 Known Exits Taken . | . . . . Unknown Exits Taken 3 | 1 1 1 . Scrap Searched 1 | . . 1 . Spaces Dug 181 | . . . 181 Terrain Destroyed 204 | . . . 204 Melee . | . . . . Projectile . | . . . . AOE 204 | . . . 204 Terrain Rammed . | . . . . Walls Destroyed . | . . . . Machines Disabled . | . . . . Actions | -11 -10 -10 -10 --------- Run | Yrd Mat Min Sub Total 908 | 44 92 312 460 Wait 16 | 1 . 1 14 Move 811 | 37 84 295 395 Hop . | . . . . Pick Up 13 | . 2 6 5 Fast Attach 11 | 6 3 1 1 Attach 5 | . . 2 3 Detach 5 | . 2 3 . Swap 4 | . . . 4 Drop 3 | . 1 . 2 Fire 20 | . . . 20 Melee 16 | . . . 16 Ram . | . . . . Kick 4 | . . 4 . Crush . | . . . . Escape Stasis . | . . . . Rewire . | . . . . Trap . | . . . . Miscellaneous . | . . . . Route ------- -11/Scrapyard -10/Materials -10/Mines (discovered 2 exits: [*Mat] / [*Sub]) -10/Subcaves (discovered 2 exits: [*Mat x2]) History --------- Turn | Location | Event 16 | -11/Scrapyard | Discovered new exit (range 15) 57 | -11/Scrapyard | Entered Materials 184 | -10/Materials | Discovered new exit (range 12) 206 | -10/Materials | Entered Mines 212 | -10/Mines | Met a Derelict bent on vengeance 233 | -10/Mines | Found a damaged Exp. Sensor Array with a note attached 237 | -10/Mines | Found Prototype Device 238 | -10/Mines | Identified Exp. Sensor Array 318 | -10/Mines | Build established: Mutant 510 | -10/Mines | Found DCF Scrap (11 items) 592 | -10/Mines | Received a Rocket Launcher from a helpful Derelict 699 | -10/Mines | Learned 2 Materials zone layouts 706 | -10/Mines | Discovered new exit (range 13) 751 | -10/Mines | A weapon hastily lodged in a ceiling crevice suddenly fell to the ground 771 | -10/Mines | Discovered new exit (range 8) 787 | -10/Mines | Entered Subcaves 788 | -10/Subcaves | Approached by a straggling Scientist 943 | -10/Subcaves | Ambushed by swarm of Subdwellers 944 | -10/Subcaves | Ambushed by Subdwellers from Twisted Machinery 944 | -10/Subcaves | Ambushed by Subdwellers from Twisted Machinery 1125 | -10/Subcaves | Discovered new exit (range 6) 1127 | -10/Subcaves | Shifting Twisted Machinery released Battle Cannon 1141 | -10/Subcaves | Shifting Twisted Machinery released Sub. Beam Cannon 1388 | -10/Subcaves | Discovered new exit (range 9) 1390 | -10/Subcaves | Learned location of Zion (-7) 1390 | -10/Subcaves | Met a Zionite searching for "candidates" 1550 | -10/Subcaves | Ambushed by Subdweller buried in earth 1550 | -10/Subcaves | Ambushed by Subdweller buried in earth 1554 | -10/Subcaves | Ambushed by Subdweller buried in earth 1564 | -10/Subcaves | Ambushed by Subdweller buried in earth 1581 | -10/Subcaves | Ambushed by Subdweller buried in earth 1631 | -10/Subcaves | Ambushed by Subdweller buried in earth 1639 | -10/Subcaves | Ambushed by Subdweller buried in earth 1647 | -10/Subcaves | Ambushed by Subdweller buried in earth 1651 | -10/Subcaves | Crushed by falling debris 1651 | -10/Subcaves | Core integrity fell below 50% 1651 | -10/Subcaves | System corruption reached 10% 1663 | -10/Subcaves | Crushed by falling debris 1663 | -10/Subcaves | Smashed by cave-in Last Messages --------------- Mining Claw destroyed. System corrupted by crushing effect (+3). Aluminum Leg destroyed. System corrupted by crushing effect (+5). Hcp. Matter Pod destroyed. System corrupted by crushing effect (+5). [Achievement: System Compromised] The unstable cave ceiling collapses. 44 Matter crushed. KZA7P5X8,MWYAYSGX#K>RCQ1%GR The unstable cave ceiling collapses. Crushed by falling debris. Ion Engine destroyed. System corrupted by crushing effect (+4). Aluminum Leg destroyed. System corrupted by crushing effect (+1). Aluminum Leg destroyed. System corrupted by crushing effect (+4). Ripper destroyed. System corrupted by crushing effect (+2). Map ----- +----------------------------------------------------+ | #??###??????????????????????????????????? | | ##??# #####???######?????????????????????? | | ##?## #??## #?????????????????????? | | ## ### #### #?????????????????????? | | ?## ######?????????????????? | | ??# #?# #?????????????????? | | ??# ## # ### ##? #?????????????????? | | #?# ####### #### #?# ##????????????????? | | #?## #?????## ### ### #????????????????? | | #??# #??????## ## ## ##???????????????? | | ??? ???????# ## #???????????????? | | ??? #???????# ## [ ###???????????????? | | ?? #???????# ### % #?????????????????? | | #?#" #???????# ## ##?????????????????? | | ??#"#?######### ### < ##??????????????????? | | ?"""### # # # ##???????????????????? | | ?" """ & ###????????????????????? | | ? """" & ## !% ##??????????????????????? | | ?## ""#[ #### # ##??????????????????????? | | "# "" #??### ## # = # ##?????????????????????? | | ??# ## #????# # ##!#[ % #?????????????????????? | | ?#"# "# #????# ###[#&# ###???????????????????? | | ??# #" ##???# ##&#### ## #???????????????????? | | ??# " ##### # #???????????????????? | | ??# # # # #???????????????????? | | ??# ####### # # @# ##???????????????????? | | ??#### #????# # ## # ##????????????????????? | | ?????#### ##????# # # ##?????????????????????? | | ????????####?????## ##????????????????????? | | ?????????????????### # # ##???????????????????? | | ???????????????????# # # #???????????????????? | | ???????????????????## #???????????????????? | | ????????????????????# #??????????????????? | | ????????????????????# * # ##??????????????????? | | ????????????????????#%= #??????????????????? | | ????????????????????#%& #?????????????????? | | ???????????????????# [ #?????????????????? | | ???????????????????#### #?????????????????? | | ??????????????????????## ##?????????????????? | | ???????????????????????# #??????????????????? | | ???????????????????????# #??????????????????? | | ???????????????????????########??????????????????? | | ?????????????????????????????????????????????????? | | ?????????????????????????????????????????????????? | | ?????????????????????????????????????????????????? | | ?????????????????????????????????????????????????? | | ?????????????????????????????????????????????????? | | ?????????????????????????????????????????????????? | | ?????????????????????????????????????????????????? | | ?????????????????????????????????????????????????? | +----------------------------------------------------+ Best States ------------- Heat Dissipation 25 Energy Generation 10 Energy Capacity 250 Matter Stores 481 Matter Capacity 500 Sight Range 16 Terrain Scan Density 10 Evasion (%) 55 Item Schematics ----------------- None Robot Schematics ------------------ None Fabricated ------------ Nothing Repaired ---------- Nothing Studied --------- None Alien Tech Used ----------------- None Achievements -------------- Do Not Disturb System Compromised Unlikely Earthworm Challenges ------------ None Game ------ Seed FireThrusterMegashotty Manual? 0 Play Time 00:30:27 Cumulative 10.8 hours Start 2026.07.04 @ 21:14:41 End 2026.07.04 @ 21:45:56 Sessions 1 Manual Loads 0 Difficulty Rogue Special Mode None Game No. 13 Rogue 13 Adventurer 0 Explorer 0 Win Type - Total 0 Types 0/0/0/0/0/0/0/0/0/0 Lore% 6 Gallery% 13 Achievement% 12 Wizard Run 0 Options --------- Layout 0 ASCII 0 Keyboard 1 Movement Numpad Keybinds 0 Fullscreen 1 Font 18/SmallcapsGlow Map View 76x50 Zoom Use 0% Tactical HUD 0 Map Filters NONE Filters NONE Steam 1 RUN: 97ef784c-af88-472b-8f32-44f075aacf6a